fUST/lending_fUST_20240529
["ID","MTS","AMOUNT","RATE_DAILY","PERIOD"]
[328136537,1716929442006,-500.0,0.00021916,2]
[328136538,1716929442015,-500.0,0.00021916,2]
[328136539,1716929442024,-500.0,0.00021916,2]
[328136540,1716929442034,-267.20014237,0.00021916,2]
[328136541,1716929442044,-306.26828649,0.00021916,2]
[328136542,1716929442053,-500.0,0.00021917,2]
[328136543,1716929442062,-500.0,0.00021917,2]
[328136544,1716929442071,-500.0,0.00021917,2]
[328136545,1716929442081,-500.0,0.00021917,2]
[328136546,1716929442263,-500.0,0.00021917,2]
[328136547,1716929442273,-500.0,0.00021917,2]
[328136548,1716929442282,-500.0,0.00021917,2]
[328136549,1716929442291,-500.0,0.00021917,2]
[328136550,1716929442300,-151.0,0.00021917,2]
[328136551,1716929442309,-151.0,0.00021917,2]
[328136552,1716929442318,-184.26686955,0.00021917,2]
[328136553,1716929442327,-500.0,0.00021917,2]
[328136554,1716929442336,-500.0,0.00021917,2]
[328136555,1716929442345,-500.47215306,0.00021917,2]
[328136556,1716929442354,-500.0,0.00021917,2]
[328136557,1716929442363,-500.0,0.00021917,2]
[328136558,1716929442372,-500.0,0.00021917,2]
[328136559,1716929442381,-500.0,0.00021917,2]
[328136560,1716929442390,-500.0,0.00021917,2]
[328136561,1716929442399,-806.95,0.00021917,2]
[328136562,1716929442409,-558.68,0.00021917,2]
[328136563,1716929442418,-500.0,0.00021917,2]
[328136564,1716929442427,-500.0,0.00021917,2]
[328136565,1716929442435,-825.79,0.00021917,2]
[328136566,1716929442444,-500.0,0.00021917,2]
[328136567,1716929442456,-533.04,0.00021917,2]
[328136568,1716929442465,-151.0,0.00021917,2]
[328136569,1716929442474,-151.0,0.00021917,2]
[328136570,1716929442483,-151.0,0.00021917,2]
[328136571,1716929442493,-151.0,0.00021917,2]
[328136572,1716929442502,-483.8342277,0.00021917,2]
[328136573,1716929442514,-16.1657723,0.00021917,2]
[328136574,1716929442524,-181.12231412,0.00021917,2]
[328136575,1716929442533,-500.0,0.00021917,2]
[328136576,1716929442542,-500.0,0.00021917,2]
[328136577,1716929442551,-500.0,0.00021917,2]
[328136578,1716929442560,-746.37,0.00021917,2]
[328136579,1716929442569,-500.0,0.00021917,2]
[328136580,1716929442578,-500.0,0.00021917,2]
[328136581,1716929442588,-151.0,0.00021917,2]
[328136582,1716929442597,-151.0,0.00021917,2]
[328136583,1716929442606,-151.0,0.00021917,2]
[328136584,1716929442616,-151.0,0.00021917,2]
[328136585,1716929442625,-151.0,0.00021917,2]
[328136586,1716929442635,-151.0,0.00021917,2]
[328136587,1716929442645,-193.236292,0.00021917,2]
[328136588,1716929442655,-500.0,0.00021917,2]
[328136589,1716929442665,-500.0,0.00021917,2]
[328136590,1716929442675,-500.0,0.00021917,2]
[328136591,1716929442684,-791.27,0.00021917,2]
[328136592,1716929442694,-500.0,0.00021917,2]
[328136593,1716929442702,-151.0,0.00021917,2]
[328136594,1716929442714,-151.0,0.00021917,2]
[328136595,1716929442724,-151.0,0.00021917,2]
[328136596,1716929442732,-151.0,0.00021917,2]
[328136597,1716929442741,-508.36543282,0.00021917,2]
[328136598,1716929442750,-535.43,0.00021917,2]
[328136599,1716929442760,-403.87223835,0.00021917,2]
[328136600,1716929442769,-1292.13,0.00021917,2]
[328136601,1716929442778,-500.0,0.00021917,2]
[328136602,1716929442787,-500.0,0.00021917,2]
[328136603,1716929442796,-500.0,0.00021917,2]
[328136604,1716929442805,-477.86986877,0.00021917,2]
[328136605,1716929442814,-863.81,0.00021917,2]
[328136606,1716929442823,-500.0,0.00021917,2]
[328136607,1716929442832,-500.0,0.00021917,2]
[328136608,1716929442841,-513.26944381,0.00021917,2]
[328136609,1716929442850,-386.24907456,0.00021917,2]
[328136610,1716929442859,-505.04152365,0.00021917,2]
[328136611,1716929442868,-478.309307,0.00021917,2]
[328136612,1716929442880,-21.690693,0.00021917,2]
[328136613,1716929442889,-882.65,0.00021917,2]
[328136614,1716929442899,-1113.0,0.00021917,2]
[328136615,1716929442912,-500.0,0.00021917,2]
[328136616,1716929442921,-500.0,0.00021917,2]
[328136617,1716929442929,-500.0,0.00021917,2]
[328136618,1716929442939,-500.0,0.00021917,2]
[328136619,1716929442949,-374.23798023,0.00021917,2]
[328136623,1716929443695,-125.76201977,0.00021917,2]
[328136624,1716929443705,-500.0,0.00021917,2]
[328136625,1716929443715,-500.0,0.00021917,2]
[328136626,1716929443725,-500.0,0.00021917,2]
[328136627,1716929443734,-579.55,0.00021917,2]
[328136628,1716929443744,-889.51,0.00021917,2]
[328136629,1716929443754,-331.92835234,0.00021917,2]
[328136632,1716929447606,-346.58553159,0.00020913,2]
[328136633,1716929447615,-168.07164766,0.00021917,2]
[328136634,1716929447624,-500.0,0.00021917,2]
[328136635,1716929447633,-812.49,0.00021917,2]
[328136636,1716929447643,-500.0,0.00021917,2]
[328136637,1716929447652,-1150.87,0.00021917,2]
[328136638,1716929447662,-1044.66,0.00021917,2]
[328136639,1716929447670,-619.61,0.00021917,2]
[328136640,1716929447679,-500.0,0.00021917,2]
[328136641,1716929447688,-514.02,0.00021917,2]
[328136642,1716929447698,-1743.78,0.00021917,2]
[328136643,1716929447707,-4246.92,0.00021917,2]
[328136644,1716929447718,-500.0,0.00021917,2]
[328136645,1716929447727,-500.0,0.00021917,2]
[328136646,1716929447736,-6104.98,0.00021917,2]
[328136647,1716929447746,-1686.25,0.00021917,2]
[328136648,1716929447755,-500.0,0.00021917,2]
[328136649,1716929447764,-4312.28,0.00021917,2]
[328136650,1716929447773,-534.99330328,0.00021917,2]
[328136651,1716929447783,-500.0,0.00021917,2]
[328136652,1716929447792,-822.14,0.00021917,2]
[328136653,1716929447802,-500.0,0.00021917,2]
[328136654,1716929447811,-500.0,0.00021917,2]
[328136655,1716929447820,-661.46,0.00021917,2]
[328136656,1716929447830,-500.0,0.00021917,2]
[328136657,1716929447839,-500.0,0.00021917,2]
[328136658,1716929447848,-1223.26,0.00021917,2]
[328136659,1716929447857,-500.0,0.00021917,2]
[328136660,1716929447866,-500.0,0.00021917,2]
[328136661,1716929447876,-500.0,0.00021917,2]
[328136662,1716929447885,-500.0,0.00021917,2]
[328136663,1716929447895,-500.0,0.00021917,2]
[328136664,1716929447908,-498.87809432,0.00021917,2]
[328136665,1716929447918,-301.04667474,0.00021917,2]
[328136666,1716929447927,-500.0,0.00021917,2]
[328136667,1716929447936,-500.0,0.00021917,2]
[328136668,1716929447946,-500.0,0.00021917,2]
[328136669,1716929447955,-500.0,0.00021917,2]
[328136670,1716929447965,-1113.08,0.00021917,2]
[328136671,1716929447974,-592.96,0.00021917,2]
[328136672,1716929447984,-500.0,0.00021917,2]
[328136673,1716929447994,-500.0,0.00021917,2]
[328136674,1716929448003,-500.0,0.00021917,2]
[328136675,1716929448011,-500.0,0.00021917,2]
[328136676,1716929448020,-500.0,0.00021917,2]
[328136677,1716929448029,-620.9,0.00021917,2]
[328136678,1716929448038,-500.0,0.00021917,2]
[328136679,1716929448047,-543.35,0.00021917,2]
[328136680,1716929448056,-500.0,0.00021917,2]
[328136681,1716929448065,-1936.24,0.00021917,2]
[328136682,1716929448074,-500.0,0.00021917,2]
[328136683,1716929448083,-1935.92,0.00021917,2]
[328136684,1716929448092,-500.0,0.00021917,2]
[328136685,1716929448102,-1155.99,0.00021917,2]
[328136686,1716929448111,-500.0,0.00021917,2]
[328136687,1716929448120,-500.0,0.00021917,2]
[328136688,1716929448129,-500.0,0.00021917,2]
[328136689,1716929448138,-500.0,0.00021917,2]
[328136690,1716929448148,-618.21,0.00021917,2]
[328136691,1716929448157,-481.76352511,0.00021917,2]
[328136692,1716929448166,-2199.9,0.00021917,2]
[328136693,1716929448177,-644.34,0.00021917,2]
[328136694,1716929448186,-500.0,0.00021917,2]
[328136695,1716929448196,-500.0,0.00021917,2]
[328136696,1716929448206,-500.0,0.00021917,2]
[328136697,1716929448219,-500.0,0.00021917,2]
[328136698,1716929448228,-1454.88,0.00021917,2]
[328136699,1716929448238,-500.0,0.00021917,2]
[328136700,1716929448247,-500.0,0.00021917,2]
[328136701,1716929448256,-275.77384677,0.00021917,2]
[328136702,1716929448265,-500.0,0.00021917,2]
[328136703,1716929448275,-6890.67,0.00021917,2]
[328136704,1716929448284,-500.0,0.00021917,2]
[328136705,1716929448294,-166.666666,0.00021918,2]
[328136706,1716929448304,-181.30968915,0.00022,2]
[328136707,1716929448314,-13699.0,0.00022,2]
[328136708,1716929448324,-181.30968915,0.00022091,2]
[328136709,1716929448334,-600.0,0.00022092,2]
[328136710,1716929448344,-620.01343046,0.00022149,2]
[328136711,1716929448354,-500.0,0.00022189,2]
[328136712,1716929448364,-500.0,0.0002219,2]
[328136713,1716929448373,-354.87417524,0.0002219,2]
[328136714,1716929448384,-30418.2479685,0.00022191,7]
[328136715,1716929448393,-626.68771112,0.00022191,2]
[328136716,1716929448402,-500.0,0.00022191,2]
[328136717,1716929448412,-500.0,0.00022191,2]
[328136718,1716929448421,-500.0,0.00022191,2]
[328136719,1716929448430,-500.0,0.00022191,2]
[328136720,1716929448439,-305.05988911,0.00022191,2]
[328136721,1716929448448,-500.0,0.00022191,2]
[328136722,1716929448458,-500.0,0.00022191,2]
[328136723,1716929448471,-500.0,0.00022191,2]
[328136724,1716929448481,-500.0,0.00022191,2]
[328136725,1716929448490,-500.0,0.00022191,2]
[328136726,1716929448500,-500.0,0.00022191,2]
[328136727,1716929448509,-806.95,0.00022191,2]
[328136728,1716929448518,-558.68,0.00022191,2]
[328136729,1716929448528,-500.0,0.00022191,2]
[328136730,1716929448537,-500.0,0.00022191,2]
[328136731,1716929448547,-825.79,0.00022191,2]
[328136732,1716929448557,-500.0,0.00022191,2]
[328136733,1716929448566,-533.04,0.00022191,2]
[328136734,1716929448575,-500.0,0.00022191,2]
[328136735,1716929448585,-500.0,0.00022191,2]
[328136736,1716929448594,-500.0,0.00022191,2]
[328136737,1716929448603,-746.37,0.00022191,2]
[328136738,1716929448612,-500.0,0.00022191,2]
[328136739,1716929448621,-555.84907136,0.00022191,2]
[328136740,1716929448631,-500.0,0.00022191,2]
[328136741,1716929448640,-500.0,0.00022191,2]
[328136742,1716929448649,-500.0,0.00022191,2]
[328136743,1716929448658,-791.27,0.00022191,2]
[328136744,1716929448668,-500.0,0.00022191,2]
[328136745,1716929448677,-535.43,0.00022191,2]
[328136746,1716929448688,-1292.13,0.00022191,2]
[328136747,1716929448697,-500.0,0.00022191,2]
[328136748,1716929448706,-500.0,0.00022191,2]
[328136749,1716929448718,-500.0,0.00022191,2]
[328136750,1716929448727,-863.81,0.00022191,2]
[328136751,1716929448737,-500.0,0.00022191,2]
[328136752,1716929448746,-500.0,0.00022191,2]
[328136753,1716929448756,-500.0,0.00022191,2]
[328136754,1716929448765,-882.65,0.00022191,2]
[328136755,1716929448774,-1113.0,0.00022191,2]
[328136756,1716929448783,-500.0,0.00022191,2]
[328136757,1716929448792,-500.0,0.00022191,2]
[328136758,1716929448802,-371.62009281,0.00022191,2]
[328136759,1716929448811,-500.0,0.00022191,2]
[328136760,1716929448820,-500.0,0.00022191,2]
[328136761,1716929448830,-500.0,0.00022191,2]
[328136762,1716929448839,-500.0,0.00022191,2]
[328136763,1716929448849,-527.73906379,0.00022191,2]
[328136764,1716929448858,-579.55,0.00022191,2]
[328136765,1716929448868,-889.51,0.00022191,2]
[328136766,1716929448877,-500.0,0.00022191,2]
[328136767,1716929448886,-500.0,0.00022191,2]
[328136768,1716929448896,-812.49,0.00022191,2]
[328136769,1716929448909,-500.0,0.00022191,2]
[328136770,1716929448918,-1150.87,0.00022191,2]
[328136771,1716929448927,-1044.66,0.00022191,2]
[328136772,1716929448937,-619.61,0.00022191,2]
[328136773,1716929448946,-514.02,0.00022191,2]
[328136774,1716929448955,-1743.78,0.00022191,2]
[328136775,1716929448966,-4246.92,0.00022191,2]
[328136776,1716929448975,-500.0,0.00022191,2]
[328136777,1716929448986,-500.0,0.00022191,2]
[328136778,1716929448996,-6104.98,0.00022191,2]
[328136779,1716929449006,-1686.25,0.00022191,2]
[328136780,1716929449015,-500.0,0.00022191,2]
[328136781,1716929449023,-4312.28,0.00022191,2]
[328136782,1716929449033,-500.0,0.00022191,2]
[328136783,1716929449044,-822.14,0.00022191,2]
[328136784,1716929449053,-500.0,0.00022191,2]
[328136785,1716929449062,-500.0,0.00022191,2]
[328136786,1716929449071,-661.46,0.00022191,2]
[328136787,1716929449081,-500.0,0.00022191,2]
[328136788,1716929449090,-500.0,0.00022191,2]
[328136789,1716929449099,-1223.26,0.00022191,2]
[328136790,1716929449108,-500.0,0.00022191,2]
[328136791,1716929449118,-500.0,0.00022191,2]
[328136792,1716929449127,-500.0,0.00022191,2]
[328136793,1716929449136,-500.0,0.00022191,2]
[328136794,1716929449146,-500.0,0.00022191,2]
[328136795,1716929449154,-617.89665414,0.00022191,2]
[328136796,1716929449164,-500.0,0.00022191,2]
[328136797,1716929449172,-1113.08,0.00022191,2]
[328136798,1716929449182,-592.96,0.00022191,2]
[328136799,1716929449191,-500.0,0.00022191,2]
[328136800,1716929449199,-500.0,0.00022191,2]
[328136801,1716929449209,-500.0,0.00022191,2]
[328136802,1716929449219,-407.25430891,0.00022191,2]
[328136803,1716929449229,-500.0,0.00022191,2]
[328136804,1716929449238,-620.9,0.00022191,2]
[328136805,1716929449247,-500.0,0.00022191,2]
[328136806,1716929449256,-543.35,0.00022191,2]
[328136807,1716929449265,-500.0,0.00022191,2]
[328136808,1716929449275,-1936.24,0.00022191,2]
[328136809,1716929449284,-500.0,0.00022191,2]
[328136810,1716929449294,-1935.92,0.00022191,2]
[328136811,1716929449302,-500.0,0.00022191,2]
[328136812,1716929449312,-1155.99,0.00022191,2]
[328136813,1716929449321,-500.0,0.00022191,2]
[328136814,1716929449330,-500.0,0.00022191,2]
[328136815,1716929449338,-500.0,0.00022191,2]
[328136816,1716929449348,-500.0,0.00022191,2]
[328136817,1716929449357,-618.21,0.00022191,2]
[328136818,1716929449366,-2199.9,0.00022191,2]
[328136819,1716929449375,-644.34,0.00022191,2]
[328136820,1716929449385,-500.0,0.00022191,2]
[328136821,1716929449394,-500.0,0.00022191,2]
[328136822,1716929449403,-199.36608523,0.00022191,2]
[328136823,1716929449662,5500.37277983,9.9e-05,2]
[328136824,1716929451171,190.22750764,9.9e-05,2]
[328136825,1716929544341,359.2836877,9.9e-05,2]
[328136826,1716929546351,299.7786707,9.9e-05,2]
[328136839,1716930323496,1044.55305837,9.999e-05,2]
[328136841,1716930433212,-587.31415229,0.00015683,2]
[328136842,1716930443169,-1648.33074395,0.00015683,2]
[328136843,1716930451226,-195.87279226,0.00015683,2]
[328136844,1716930451250,-165.83979791,0.00015684,2]
[328136845,1716930453130,-6.2811738,0.00015684,2]
[328136846,1716930453152,-292.47158526,0.00015684,2]
[328136847,1716930453173,-41.94140553,0.00019309,2]
[328136849,1716930554168,-419.54295087,0.00019309,2]
[328136850,1716930554208,-165.144506,0.00019386,2]
[328136851,1716930554251,-433.76122242,0.000194,2]
[328136852,1716930617292,539.57694102,0.00015684,2]
[328136897,1716930633057,-477.25257148,0.000189,2]
[328136898,1716930633066,-95.81366958,0.000194,2]
[328136899,1716930633075,-151.0,0.00019916,3]
[328136900,1716930633084,-151.0,0.00020197,3]
[328136901,1716930633093,-151.0,0.00020479,3]
[328136903,1716930633102,-151.0,0.0002076,3]
[328136905,1716930633111,-363.59271146,0.00020912,7]
[328136906,1716930633120,-155.23520848,0.00020912,2]
[328136907,1716930633130,-164.28466186,0.00020912,2]
[328136908,1716930633139,-154.92253873,0.00020912,2]
[328136909,1716930633148,-156.6263305,0.00020912,2]
[328136910,1716930633157,-285.35051707,0.00020912,2]
[328136911,1716930633165,-449.54262902,0.00020912,2]
[328136912,1716930633173,-380.3029118,0.00020912,2]
[328136913,1716930633182,-832.08833081,0.00020912,2]
[328136914,1716930633191,-4790.70723609,0.00020913,2]
[328136915,1716930633199,-151.0,0.00021042,3]
[328136916,1716930633208,-151.0,0.00021323,3]
[328136917,1716930633217,-151.0,0.00021605,3]
[328136918,1716930633226,-639.8696077,0.00021671,2]
[328136919,1716930633235,-151.0,0.00021886,3]
[328136920,1716930633244,-451.36671303,0.00021916,2]
[328136921,1716930633252,-500.0,0.00021916,2]
[328136922,1716930633261,-500.0,0.00021916,2]
[328136923,1716930633271,-500.0,0.00021916,2]
[328136924,1716930633280,-500.0,0.00021916,2]
[328136925,1716930633290,-157.96225825,0.00021916,2]
[328136926,1716930633303,-259.65394779,0.00021916,2]
[328136927,1716930633312,-500.0,0.00021916,2]
[328136928,1716930633321,-500.0,0.00021916,2]
[328136929,1716930633330,-500.0,0.00021916,2]
[328136930,1716930633340,-500.0,0.00021916,2]
[328136931,1716930633349,-500.0,0.00021916,2]
[328136932,1716930633358,-500.0,0.00021916,2]
[328136933,1716930633367,-500.0,0.00021916,2]
[328136934,1716930633378,-500.0,0.00021916,2]
[328136935,1716930633387,-326.86037223,0.00021916,2]
[328136936,1716930633395,-500.0,0.00021916,2]
[328136937,1716930633404,-500.0,0.00021916,2]
[328136938,1716930633413,-500.0,0.00021916,2]
[328136939,1716930633422,-500.0,0.00021916,2]
[328136940,1716930633431,-500.0,0.00021916,2]
[328136941,1716930633440,-500.0,0.00021916,2]
[328136942,1716930633449,-356.9939,0.00021916,2]
[328136943,1716930633458,-500.0,0.00021916,2]
[328136944,1716930633467,-500.0,0.00021916,2]
[328136945,1716930633477,-500.0,0.00021916,2]
[328136946,1716930633486,-500.0,0.00021916,2]
[328136947,1716930633494,-500.0,0.00021916,2]
[328136948,1716930633503,-500.0,0.00021916,2]
[328136949,1716930633512,-500.0,0.00021916,2]
[328136950,1716930633521,-500.0,0.00021916,2]
[328136951,1716930633530,-500.0,0.00021916,2]
[328136952,1716930633540,-500.0,0.00021916,2]
[328136953,1716930633550,-500.0,0.00021916,2]
[328136954,1716930633559,-500.0,0.00021916,2]
[328136955,1716930633568,-500.0,0.00021916,2]
[328136956,1716930633578,-500.0,0.00021916,2]
[328136957,1716930633587,-500.0,0.00021916,2]
[328136958,1716930633596,-500.0,0.00021916,2]
[328136959,1716930633606,-500.0,0.00021916,2]
[328136960,1716930633615,-500.0,0.00021916,2]
[328136961,1716930633624,-431.99992341,0.00021916,2]
[328136962,1716930633634,-500.0,0.00021916,2]
[328136963,1716930633643,-500.0,0.00021916,2]
[328136964,1716930633652,-500.0,0.00021916,2]
[328136965,1716930633662,-500.0,0.00021917,2]
[328136966,1716930633672,-174.24221561,0.00021917,2]
[328136967,1716930633681,-500.0,0.00021917,2]
[328136968,1716930633691,-500.0,0.00021917,2]
[328136969,1716930633700,-500.0,0.00021917,2]
[328136970,1716930633709,-500.0,0.00021917,2]
[328136971,1716930633718,-500.0,0.00021917,2]
[328136972,1716930633727,-194.04795157,0.00021917,2]
[328136973,1716930633736,-1184.45,0.00021917,2]
[328136974,1716930633747,-1054.96,0.00021917,2]
[328136975,1716930633757,-608.60544156,0.00021917,2]
[328136976,1716930633767,-1774.59,0.00021917,2]
[328136977,1716930633777,-500.0,0.00021917,2]
[328136978,1716930633786,-363.59843177,0.00021917,2]
[328136979,1716930633795,-500.0,0.00021917,2]
[328136980,1716930633804,-512.12,0.00021917,2]
[328136981,1716930633813,-500.0,0.00021917,2]
[328136982,1716930633823,-606.34,0.00021917,2]
[328136983,1716930633832,-500.0,0.00021917,2]
[328136984,1716930633842,-500.0,0.00021917,2]
[328136985,1716930633851,-739.7,0.00021917,2]
[328136986,1716930633861,-500.0,0.00021917,2]
[328136987,1716930633870,-756.98,0.00021917,2]
[328136988,1716930634041,-725.33,0.00021917,2]
[328136989,1716930634051,-500.0,0.00021917,2]
[328136990,1716930634060,-569.16,0.00021917,2]
[328136991,1716930634069,-500.0,0.00021917,2]
[328136992,1716930634078,-500.0,0.00021917,2]
[328136993,1716930634088,-500.0,0.00021917,2]
[328136994,1716930634097,-570.15,0.00021917,2]
[328136995,1716930634107,-500.0,0.00021917,2]
[328136996,1716930634116,-500.0,0.00021917,2]
[328136997,1716930634125,-500.0,0.00021917,2]
[328136998,1716930634135,-500.0,0.00021917,2]
[328136999,1716930634144,-290.49002756,0.00021917,2]
[328137000,1716930634154,-500.0,0.00021917,2]
[328137001,1716930634163,-500.0,0.00021917,2]
[328137002,1716930634172,-500.0,0.00021917,2]
[328137003,1716930634182,-500.0,0.00021917,2]
[328137004,1716930634191,-791.83,0.00021917,2]
[328137005,1716930634201,-809.1,0.00021917,2]
[328137006,1716930634210,-500.0,0.00021917,2]
[328137007,1716930634219,-531.25,0.00021917,2]
[328137008,1716930634228,-1394.26,0.00021917,2]
[328137009,1716930634237,-1020.25,0.00021917,2]
[328137010,1716930634247,-744.79,0.00021917,2]
[328137011,1716930634256,-500.0,0.00021917,2]
[328137012,1716930634265,-500.0,0.00021917,2]
[328137013,1716930634276,-500.0,0.00021917,2]
[328137014,1716930634285,-500.0,0.00021917,2]
[328137015,1716930634301,-567.97,0.00021917,2]
[328137016,1716930634310,-6603.56,0.00021917,2]
[328137017,1716930634320,-620.6474665,0.00021917,2]
[328137018,1716930634329,-3893.01,0.00021917,2]
[328137019,1716930634339,-500.0,0.00021917,2]
[328137020,1716930634349,-500.0,0.00021917,2]
[328137021,1716930634358,-5596.23,0.00021917,2]
[328137022,1716930634369,-500.0,0.00021917,2]
[328137023,1716930634378,-500.0,0.00021917,2]
[328137024,1716930634386,-500.0,0.00021917,2]
[328137025,1716930634395,-3952.92,0.00021917,2]
[328137026,1716930634404,-815.38,0.00021917,2]
[328137027,1716930634413,-753.63,0.00021917,2]
[328137028,1716930634423,-500.0,0.00021917,2]
[328137029,1716930634432,-500.0,0.00021917,2]
[328137030,1716930634441,-500.0,0.00021917,2]
[328137031,1716930634450,-1598.46,0.00021917,2]
[328137032,1716930634459,-565.10282464,0.00021917,2]
[328137033,1716930634468,-1121.33,0.00021917,2]
[328137034,1716930634477,-500.0,0.00021917,2]
[328137035,1716930634486,-500.0,0.00021917,2]
[328137036,1716930634495,-500.0,0.00021917,2]
[328137037,1716930634504,-500.0,0.00021917,2]
[328137038,1716930634513,-957.61,0.00021917,2]
[328137039,1716930634523,-500.0,0.00021917,2]
[328137040,1716930634532,-500.0,0.00021917,2]
[328137041,1716930634542,-543.55,0.00021917,2]
[328137042,1716930634551,-500.0,0.00021917,2]
[328137043,1716930634560,-500.0,0.00021917,2]
[328137044,1716930634569,-500.0,0.00021917,2]
[328137045,1716930634579,-500.0,0.00021917,2]
[328137046,1716930634588,-500.0,0.00021917,2]
[328137047,1716930634596,-500.0,0.00021917,2]
[328137048,1716930634606,-500.0,0.00021917,2]
[328137049,1716930634615,-500.0,0.00021917,2]
[328137050,1716930634624,-500.0,0.00021917,2]
[328137051,1716930634633,-500.0,0.00021917,2]
[328137052,1716930634643,-500.0,0.00021917,2]
[328137053,1716930634652,-500.0,0.00021917,2]
[328137054,1716930634661,-500.0,0.00021917,2]
[328137055,1716930634670,-500.0,0.00021917,2]
[328137056,1716930634679,-500.0,0.00021917,2]
[328137057,1716930634688,-566.7,0.00021917,2]
[328137058,1716930634697,-1059.66,0.00021917,2]
[328137059,1716930634707,-590.64,0.00021917,2]
[328137060,1716930634716,-393.9336334,0.00021917,2]
[328137061,1716930634726,-1020.33,0.00021917,2]
[328137062,1716930634735,-2016.58,0.00021917,2]
[328137063,1716930634744,-500.0,0.00021917,2]
[328137064,1716930634753,-500.0,0.00021917,2]
[328137065,1716930634762,-500.0,0.00021917,2]
[328137066,1716930634772,-500.0,0.00021917,2]
[328137067,1716930634781,-500.0,0.00021917,2]
[328137068,1716930634791,-166.666666,0.00021918,2]
[328137069,1716930634800,-250.19492953,0.00021969,2]
[328137070,1716930634810,-600.0,0.00022092,2]
[328137071,1716930634820,-620.00067152,0.00022094,2]
[328137072,1716930634829,-282.0,0.000221,2]
[328137073,1716930634838,-151.0,0.00022168,3]
[328137074,1716930634848,-500.0,0.00022191,2]
[328137075,1716930634857,-411.64490486,0.00022191,2]
[328137076,1716930634867,-500.0,0.00022191,2]
[328137077,1716930634877,-500.0,0.00022191,2]
[328137078,1716930634886,-500.0,0.00022191,2]
[328137079,1716930634895,-627.11801884,0.00022191,2]
[328137080,1716930634903,-1184.45,0.00022191,2]
[328137081,1716930634913,-1054.96,0.00022191,2]
[328137082,1716930634922,-1774.59,0.00022191,2]
[328137083,1716930634931,-500.0,0.00022191,2]
[328137084,1716930634940,-500.0,0.00022191,2]
[328137085,1716930634950,-512.12,0.00022191,2]
[328137086,1716930634959,-500.0,0.00022191,2]
[328137087,1716930634968,-606.34,0.00022191,2]
[328137088,1716930634977,-500.0,0.00022191,2]
[328137089,1716930634986,-500.0,0.00022191,2]
[328137090,1716930634996,-739.7,0.00022191,2]
[328137091,1716930635005,-500.0,0.00022191,2]
[328137092,1716930635014,-756.98,0.00022191,2]
[328137093,1716930635025,-725.33,0.00022191,2]
[328137094,1716930635034,-500.0,0.00022191,2]
[328137095,1716930635043,-569.16,0.00022191,2]
[328137096,1716930635052,-154.97285816,0.00022191,2]
[328137097,1716930635061,-360.51230188,0.00022191,2]
[328137098,1716930635070,-500.0,0.00022191,2]
[328137099,1716930635079,-570.15,0.00022191,2]
[328137100,1716930635088,-500.0,0.00022191,2]
[328137101,1716930635098,-500.0,0.00022191,2]